fUSD/lending_fUSD_20251103
["ID","MTS","AMOUNT","RATE_DAILY","PERIOD"]
[392960104,1762180245495,-1000.0,0.00028219,2]
[392960105,1762180245504,-150.0,0.00028235,7]
[392960106,1762180245514,-150.0,0.00028235,7]
[392960107,1762180245523,-150.0,0.00028235,7]
[392960109,1762180245533,-150.0,0.00028235,7]
[392960110,1762180245542,-758.43650264,0.00028235,5]
[392960111,1762180245551,-446.1979887,0.00028263,2]
[392960112,1762180245561,-150.0,0.00028278,7]
[392960113,1762180245570,-500.0,0.00028287,7]
[392960114,1762180245582,-150.0,0.00028291,7]
[392960115,1762180245591,-150.0,0.00028301,7]
[392960116,1762180245600,-500.0,0.00028306,7]
[392960117,1762180245610,-500.0,0.00028315,7]
[392960118,1762180245620,-150.0,0.00028329,7]
[392960119,1762180245629,-150.0,0.00028356,7]
[392960120,1762180245639,-150.0,0.00028365,7]
[392960121,1762180245648,-150.0,0.0002838,7]
[392960122,1762180245657,-150.0,0.0002838,7]
[392960123,1762180245667,-600.0,0.00028388,7]
[392960124,1762180245676,-150.0,0.00028416,7]
[392960125,1762180245686,-500.0,0.00028417,7]
[392960127,1762180245695,-150.0,0.00028432,7]
[392960129,1762180245705,-150.0,0.00028432,7]
[392960130,1762180245714,-150.0,0.00028439,7]
[392960131,1762180245724,-150.0,0.00028448,7]
[392960132,1762180245734,-500.0,0.00028452,7]
[392960133,1762180245743,-150.0,0.00028455,7]
[392960134,1762180245753,-150.0,0.00028476,7]
[392960135,1762180245763,-150.0,0.00028476,7]
[392960136,1762180245772,-1300.0,0.00028477,7]
[392960137,1762180245782,-245.21,0.00028493,10]
[392960138,1762180245795,-1000.0,0.00028493,2]
[392960139,1762180245804,-500.0,0.00028494,7]
[392960140,1762180245814,-150.0,0.00028513,7]
[392960141,1762180245823,-150.0,0.00028525,7]
[392960142,1762180245835,-2009.58232,0.0002853,2]
[392960143,1762180245844,-150.0,0.00028545,7]
[392960144,1762180245853,-500.0,0.00028549,7]
[392960145,1762180245865,-507.99392349,0.00028553,5]
[392960146,1762180245875,-150.0,0.00028564,7]
[392960147,1762180245885,-2009.58232,0.0002857,2]
[392960148,1762180245895,-2427.2535584,0.00028573,2]
[392960149,1762180245905,-500.0,0.00028575,7]
[392960150,1762180245915,-150.0,0.00028581,7]
[392960151,1762180245925,-150.0,0.00028588,7]
[392960152,1762180245935,-500.0,0.00028589,7]
[392960153,1762180245945,-150.0,0.00028597,7]
[392960154,1762180245955,-150.0,0.00028597,7]
[392960155,1762180245965,-150.0,0.00028618,7]
[392960156,1762180245975,-500.0,0.00028622,7]
[392960157,1762180245984,-500.0,0.00028644,7]
[392960158,1762180245994,-150.0,0.00028662,7]
[392960159,1762180246004,-150.0,0.00028669,7]
[392960160,1762180246014,-150.0,0.00028696,7]
[392960161,1762180246024,-150.0,0.00028696,7]
[392960162,1762180246035,-150.0,0.00028707,7]
[392960163,1762180246046,-150.0,0.00028718,7]
[392960164,1762180246056,-150.0,0.00028736,7]
[392960165,1762180246066,-194.08,0.00028738,2]
[392960166,1762180246076,-3310.91366811,0.00028748,2]
[392960167,1762180246090,-245.21,0.00028767,11]
[392960168,1762180246099,-1000.0,0.00028767,2]
[392960169,1762180246109,-151.0,0.00028767,30]
[392960170,1762180246119,-150.0,0.00028778,7]
[392960171,1762180246128,-150.0,0.00028789,7]
[392960172,1762180246138,-184.12,0.000288,19]
[392960173,1762180246147,-150.0,0.0002881,7]
[392960174,1762180246157,-500.0,0.00028814,7]
[392960175,1762180246167,-150.0,0.00028814,7]
[392960176,1762180246177,-1300.0,0.00028817,7]
[392960177,1762180246187,-2009.58232,0.0002882,2]
[392960178,1762180246197,-150.0,0.00028827,7]
[392960179,1762180246207,-150.0,0.00028833,7]
[392960180,1762180246216,-150.0,0.00028838,7]
[392960181,1762180246285,-500.0,0.00028868,7]
[392960182,1762180246295,-7137.61552583,0.0002888,2]
[392960183,1762180246305,-150.0,0.00028885,7]
[392960184,1762180246315,-500.0,0.00028889,7]
[392960185,1762180246324,-837.8078,0.0002889,2]
[392960186,1762180246336,-500.0,0.00028895,7]
[392960187,1762180246345,-500.0,0.0002895,7]
[392960188,1762180246355,-500.0,0.00028954,7]
[392960189,1762180246364,-186.2923937,0.00028959,7]
[392960190,1762180246372,-296.56440007,0.00028959,7]
[392960191,1762180246382,-251.62954777,0.00028959,7]
[392960192,1762180246391,-152.45231427,0.00028959,7]
[392960193,1762180246401,-181.26603437,0.00028959,7]
[392960194,1762180246410,-170.53692264,0.00028959,7]
[392960195,1762180246419,-181.86436565,0.00028959,7]
[392960196,1762180246428,-287.16679279,0.00028959,7]
[392960197,1762180246438,-157.82063715,0.00028959,7]
[392960198,1762180246448,-255.56280565,0.00028959,7]
[392960199,1762180246457,-194.59024156,0.00028959,7]
[392960200,1762180246468,-151.8412202,0.00028959,7]
[392960201,1762180246486,-164.58940059,0.00028959,7]
[392960202,1762180246496,-150.00000001,0.00028959,7]
[392960203,1762180246505,-191.53775451,0.00028959,7]
[392960204,1762180246515,-182.95396816,0.00028959,7]
[392960205,1762180246525,-151.0,0.00028987,7]
[392960206,1762180246535,-150.0,0.00028989,20]
[392960207,1762180246544,-151.0,0.0002899,31]
[392960208,1762180246553,-151.0,0.0002899,31]
[392960209,1762180246562,-151.0,0.0002899,31]
[392960210,1762180246571,-360.377788,0.0002899,31]
[392960211,1762180246582,-192.469461,0.0002899,30]
[392960212,1762180246591,-360.377788,0.0002899,31]
[392960213,1762180246600,-360.377788,0.0002899,31]
[392960214,1762180246610,-215.16726,0.0002899,30]
[392960215,1762180246619,-360.377788,0.0002899,31]
[392960216,1762180246628,-151.0,0.0002899,31]
[392960217,1762180246638,-215.16726,0.0002899,30]
[392960218,1762180246648,-215.16726,0.0002899,30]
[392960219,1762180246657,-215.16726,0.0002899,30]
[392960220,1762180246667,-151.0,0.0002899,31]
[392960221,1762180246676,-151.0,0.0002899,31]
[392960222,1762180246686,-151.0,0.0002899,31]
[392960223,1762180246695,-666.0,0.00028999,10]
[392960224,1762180246704,-7030.59735324,0.00029,7]
[392960225,1762180246713,-1925.11774376,0.00029,2]
[392960226,1762180246722,-4000.0,0.00029,15]
[392960227,1762180246731,-21119.17694627,0.00029,2]
[392960228,1762180246741,-525.85,0.00029,7]
[392960229,1762180246750,-422147.9467039,0.00029,2]
[392960230,1762180246760,-10091.0,0.00029,7]
[392960231,1762180246769,-550.0,0.00029,2]
[392960232,1762180246778,-2000.0,0.00029,2]
[392960233,1762180246788,-151.0,0.00029,31]
[392960234,1762180246799,-151.0,0.00029,31]
[392960235,1762180246809,-151.0,0.00029,31]
[392960236,1762180246819,-281.302737,0.00029,31]
[392960237,1762180246828,-189.115932,0.00029,31]
[392960238,1762180246839,-151.0,0.00029,31]
[392960239,1762180246848,-151.0,0.00029,10]
[392960240,1762180246858,-151.0,0.00029,14]
[392960241,1762180246869,-158.526212,0.00029,31]
[392960242,1762180246879,-151.0,0.00029,31]
[392960243,1762180246888,-151.0,0.00029,31]
[392960244,1762180246897,-151.0,0.00029,31]
[392960245,1762180246907,-151.0,0.00029,31]
[392960246,1762180246916,-153.011994,0.00029,31]
[392960247,1762180246926,-151.0,0.00029,31]
[392960248,1762180246934,-151.0,0.00029,31]
[392960249,1762180246944,-477.5520043,0.00029,7]
[392960250,1762180246953,-1300.0,0.00029015,7]
[392960251,1762180246963,-245.21,0.00029041,12]
[392960252,1762180246973,-1000.0,0.00029041,2]
[392960253,1762180246982,-500.0,0.00029067,7]
[392960254,1762180246991,-2009.58233,0.0002907,2]
[392960255,1762180247000,-200.0,0.000291,7]
[392960256,1762180247010,-500.0,0.00029106,7]
[392960257,1762180247019,-588.74840444,0.00029199,10]
[392960258,1762180247029,-1300.0,0.00029199,7]
[392960259,1762180247038,-39142.62931663,0.000292,2]
[392960260,1762180247048,-500.0,0.00029219,7]
[392960261,1762180247058,-500.0,0.00029246,7]
[392960262,1762180247068,-500.0,0.00029247,7]
[392960263,1762180247078,-500.0,0.00029289,7]
[392960264,1762180247089,-245.21,0.00029315,13]
[392960265,1762180247098,-1000.0,0.00029315,2]
[392960266,1762180247108,-2009.58232,0.0002932,2]
[392960267,1762180247117,-1270.0,0.00029366,2]
[392960268,1762180247127,-500.0,0.00029366,7]
[392960269,1762180247136,-1300.0,0.00029441,7]
[392960270,1762180247146,-600.0,0.00029445,7]
[392960271,1762180247155,-4500.0,0.000295,7]
[392960272,1762180247164,-1883.02,0.000295,2]
[392960273,1762180247174,-500.0,0.0002956,7]
[392960274,1762180247184,-2009.58232,0.0002957,2]
[392960275,1762180247194,-150.0,0.00029573,5]
[392960276,1762180247203,-2538.49,0.00029575,2]
[392960277,1762180247212,-415.43,0.00029575,2]
[392960278,1762180247221,-245.21,0.00029589,14]
[392960279,1762180247231,-1170.72,0.00029589,2]
[392960280,1762180247240,-1000.0,0.00029589,2]
[392960281,1762180247250,-525.85,0.000296,7]
[392960282,1762180247259,-151.0,0.000296,31]
[392960283,1762180247268,-848.48544183,0.00029627,7]
[392960284,1762180247278,-500.0,0.00029653,7]
[392960285,1762180247287,-151.0,0.00029668,31]
[392960286,1762180247297,-151.0,0.00029668,31]
[392960287,1762180247306,-151.0,0.00029668,31]
[392960288,1762180247315,-169.571141,0.00029668,31]
[392960289,1762180247325,-151.0,0.00029668,31]
[392960290,1762180247334,-1270.0,0.00029668,2]
[392960291,1762180247343,-5000.0,0.00029676,2]
[392960292,1762180247353,-151.0,0.00029676,31]
[392960293,1762180247361,-151.0,0.00029676,31]
[392960294,1762180247370,-151.0,0.00029676,31]
[392960295,1762180247380,-151.0,0.00029676,31]
[392960296,1762180247389,-151.0,0.00029676,31]
[392960297,1762180247398,-277.665391,0.00029676,31]
[392960298,1762180247407,-151.0,0.00029676,31]
[392960299,1762180247417,-151.0,0.00029676,31]
[392960300,1762180247426,-151.0,0.00029676,31]
[392960301,1762180247435,-152.745563,0.00029676,31]
[392960302,1762180247445,-224.15203,0.00029676,31]
[392960303,1762180247455,-151.0,0.00029676,31]
[392960304,1762180247464,-151.0,0.00029676,31]
[392960305,1762180247473,-151.0,0.00029676,31]
[392960306,1762180247483,-1300.0,0.00029695,7]
[392960307,1762180247493,-459.21,0.000297,5]
[392960308,1762180247502,-717.34480601,0.00029725,7]
[392960309,1762180247512,-500.0,0.00029782,7]
[392960310,1762180247521,-151.0,0.00029797,7]
[392960311,1762180247531,-500.0,0.00029814,7]
[392960312,1762180247541,-500.0,0.00029818,7]
[392960313,1762180247550,-1000.0,0.00029863,30]
[392960314,1762180247558,-1000.0,0.00029863,30]
[392960315,1762180247568,-500.0,0.00029863,30]
[392960316,1762180247577,-245.21,0.00029863,15]
[392960317,1762180247588,-1000.0,0.00029863,2]
[392960318,1762180247598,-500.0,0.00029876,7]
[392960319,1762180247607,-500.0,0.0002988,2]
[392960320,1762180247616,-500.0,0.0002988,2]
[392960321,1762180247625,-151.0,0.00029899,15]
[392960322,1762180247634,-151.0,0.00029899,31]
[392960323,1762180247643,-77789.92397753,0.000299,2]
[392960324,1762180247652,-1941.74015082,0.000299,17]
[392960325,1762180247661,-600.0,0.00029949,7]
[392960326,1762180247670,-1270.0,0.00029971,2]
[392960327,1762180247679,-177.0,0.00029973,2]
[392960328,1762180247688,-500.0,0.00029982,7]
[392960329,1762180247697,-178.5775,0.00029989,2]
[392960330,1762180247706,-69623.91275911,0.0002999,2]
[392960331,1762180247715,-233.91202148,0.0002999,2]
[392960332,1762180247724,-500.0,0.00029992,7]
[392960333,1762180247734,-151.0,0.00029997,7]
[392960334,1762180247743,-1263828.8179061,0.0003,2]
[392960335,1762180247752,-151.0,0.0003,7]
[392960336,1762180247761,-350.0,0.0003,7]
[392960337,1762180247770,-151.0,0.0003,7]
[392960338,1762180247779,-251.0,0.0003,7]
[392960339,1762180247790,-151.0,0.0003,7]
[392960340,1762180247801,-2000.0,0.0003,14]
[392960341,1762180247810,-73715.11987539,0.0003,5]
[392960342,1762180247819,-8500.0,0.0003,2]
[392960343,1762180247828,-19598.33527992,0.0003,2]
[392960344,1762180247838,-1791.4828427,0.0003,2]
[392960345,1762180247847,-605.76278512,0.0003,2]
[392960346,1762180247856,-160.6927363,0.0003,2]
[392960347,1762180247866,-50819.89943668,0.0003,2]
[392960348,1762180247875,-358.88534368,0.0003,2]
[392960349,1762180247884,-20000.0,0.0003,5]
[392960350,1762180247893,-200.0,0.0003,15]
[392960351,1762180247903,-151.19,0.0003,5]
[392960352,1762180247912,-10179.55876217,0.0003,2]
[392960353,1762180247921,-4880.0,0.0003,10]
[392960354,1762180247930,-300.0,0.0003,4]
[392960355,1762180247939,-400.0,0.0003,2]
[392960356,1762180247948,-744.83,0.0003,7]
[392960357,1762180247957,-5000.0,0.0003,2]
[392960358,1762180247966,-417.65,0.0003,7]
[392960359,1762180247976,-151.0,0.0003,31]
[392960360,1762180247985,-193.0,0.0003,14]
[392960361,1762180247994,-151.0,0.0003,31]
[392960362,1762180248003,-7768.59199146,0.0003,120]
[392960363,1762180248012,-151.0,0.0003,31]
[392960364,1762180248021,-151.0,0.0003,31]
[392960365,1762180248030,-160.52,0.0003,3]
[392960366,1762180248039,-151.0,0.0003,31]
[392960367,1762180248048,-151.0,0.0003,31]
[392960368,1762180248057,-261.989376,0.0003,31]
[392960369,1762180248067,-151.0,0.0003,31]
[392960370,1762180248077,-159.050746,0.0003,31]
[392960371,1762180248087,-151.0,0.0003,31]
[392960372,1762180248097,-151.0,0.0003,10]
[392960373,1762180248108,-151.0,0.0003,31]
[392960374,1762180248117,-151.0,0.0003,31]
[392960375,1762180248127,-151.0,0.0003,31]
[392960376,1762180248137,-151.0,0.0003,31]
[392960377,1762180248147,-151.0,0.0003,31]
[392960378,1762180248157,-151.0,0.0003,31]
[392960379,1762180248166,-184.12,0.0003,22]
[392960380,1762180248176,-151.0,0.0003,31]
[392960381,1762180248185,-151.0,0.0003,31]
[392960382,1762180248194,-360.377788,0.0003,31]
[392960383,1762180248204,-360.377788,0.0003,31]
[392960384,1762180248213,-360.377788,0.0003,31]
[392960385,1762180248222,-215.16726,0.0003,30]
[392960386,1762180248232,-360.377788,0.0003,31]
[392960387,1762180248242,-151.0,0.0003,31]
[392960388,1762180248251,-215.16726,0.0003,30]
[392960389,1762180248261,-154.62722808,0.0003,120]
[392960390,1762180248270,-215.16726,0.0003,30]
[392960391,1762180248280,-215.16726,0.0003,30]
[392960392,1762180248290,-151.0,0.0003,31]
[392960393,1762180248300,-151.0,0.0003,31]
[392960394,1762180248309,-1728.65575598,0.0003,2]
[392960395,1762180248319,-151.0,0.0003,31]
[392960396,1762180248328,-151.0,0.0003,31]
[392960397,1762180248338,-477.5520043,0.0003,10]
[392960398,1762180248347,-151.0,0.0003,31]
[392960399,1762180248357,-151.0,0.0003,31]
[392960400,1762180248367,-151.0,0.0003,31]
[392960401,1762180248377,-151.0,0.0003,31]
[392960402,1762180248386,-151.0,0.0003,31]
[392960403,1762180248396,-151.0,0.0003,31]
[392960404,1762180248405,-233.713944,0.0003,31]
[392960405,1762180248415,-151.0,0.0003,31]
[392960406,1762180248424,-151.0,0.0003,31]
[392960407,1762180248433,-151.0,0.0003,31]
[392960408,1762180248442,-151.0,0.0003,31]
[392960409,1762180248451,-1300.0,0.00030018,7]
[392960410,1762180248460,-500.0,0.00030023,7]
[392960411,1762180248469,-1300.0,0.00030033,7]
[392960412,1762180248478,-200.0,0.000301,7]
[392960413,1762180248487,-8619.03,0.000301,7]
[392960414,1762180248496,-1300.0,0.00030113,7]
[392960415,1762180248506,-250.0,0.00030121,5]
[392960416,1762180248515,-624.98558197,0.0003013,2]
[392960417,1762180248524,-307.71776544,0.0003013,2]
[392960418,1762180248534,-1057.91213721,0.0003013,2]
[392960419,1762180248543,-13653.65958459,0.0003013,2]
[392960420,1762180248551,-198.85359953,0.0003013,2]
[392960421,1762180248560,-1206.87447581,0.0003013,2]
[392960422,1762180248569,-7621.96011936,0.0003013,2]
[392960423,1762180248578,-1179.30846034,0.0003013,5]
[392960424,1762180248589,-25358.41907559,0.0003013,120]
[392960425,1762180248598,-151.0,0.00030136,2]
[392960426,1762180248608,-151.0,0.00030136,2]
[392960427,1762180248617,-151.0,0.00030136,2]
[392960428,1762180248626,-500.0,0.00030136,15]
[392960429,1762180248635,-245.21,0.00030136,16]
[392960430,1762180248644,-500.0,0.00030136,2]
[392960431,1762180248653,-1168.03,0.00030136,2]
[392960432,1762180248663,-500.0,0.00030136,10]
[392960433,1762180248672,-5651.25,0.00030136,2]
[392960434,1762180248682,-500.0,0.00030136,2]
[392960435,1762180248691,-500.0,0.00030136,2]
[392960436,1762180248700,-323.06,0.00030136,2]
[392960437,1762180248709,-500.0,0.00030136,2]
[392960438,1762180248719,-300.0,0.00030136,2]
[392960439,1762180248728,-500.0,0.00030136,2]
[392960440,1762180248738,-150.0,0.00030136,2]
[392960441,1762180248747,-224.14719722,0.00030136,2]
[392960442,1762180248756,-653.07,0.00030137,2]
[392960443,1762180248765,-1000.0,0.00030137,2]
[392960444,1762180248775,-500.0,0.00030137,2]
[392960445,1762180248785,-500.0,0.00030137,2]
[392960446,1762180248798,-500.0,0.00030137,2]
[392960447,1762180248807,-500.0,0.00030137,2]
[392960448,1762180248816,-500.0,0.00030137,2]
[392960449,1762180248826,-500.0,0.00030137,2]
[392960450,1762180248836,-500.0,0.00030137,2]
[392960451,1762180248845,-500.0,0.00030137,2]
[392960452,1762180248855,-500.0,0.00030137,2]
[392960453,1762180248865,-500.0,0.00030137,2]
[392960454,1762180248874,-500.0,0.00030137,2]
[392960455,1762180248884,-500.0,0.00030137,2]
[392960456,1762180248894,-500.0,0.00030137,2]
[392960457,1762180248903,-500.0,0.00030137,2]
[392960458,1762180248912,-500.0,0.00030137,2]
[392960459,1762180248921,-500.0,0.00030137,2]
[392960460,1762180248930,-500.0,0.00030137,2]
[392960461,1762180248939,-500.0,0.00030137,2]
[392960462,1762180248949,-500.0,0.00030137,2]
[392960463,1762180248958,-500.0,0.00030137,2]
[392960464,1762180248967,-500.0,0.00030137,2]
[392960465,1762180248976,-500.0,0.00030137,2]
[392960466,1762180248986,-500.0,0.00030137,2]
[392960467,1762180248996,-500.0,0.00030137,2]
[392960468,1762180249005,-500.0,0.00030137,2]
[392960469,1762180249014,-500.0,0.00030137,2]
[392960470,1762180249024,-500.0,0.00030137,2]
[392960471,1762180249033,-500.0,0.00030137,2]
[392960472,1762180249042,-500.0,0.00030137,2]
[392960473,1762180249051,-500.0,0.00030137,2]
[392960474,1762180249061,-500.0,0.00030137,2]
[392960475,1762180249070,-500.0,0.00030137,2]
[392960476,1762180249080,-500.0,0.00030137,2]
[392960477,1762180249091,-500.0,0.00030137,2]
[392960478,1762180249101,-500.0,0.00030137,2]
[392960479,1762180249110,-500.0,0.00030137,2]
[392960480,1762180249120,-500.0,0.00030137,2]
[392960481,1762180249129,-500.0,0.00030137,2]
[392960482,1762180249138,-500.0,0.00030137,2]
[392960483,1762180249147,-500.0,0.00030137,2]
[392960484,1762180249156,-500.0,0.00030137,2]
[392960485,1762180249166,-500.0,0.00030137,2]
[392960486,1762180249175,-309.4540045,0.00030137,2]
[392960487,1762180249184,-500.0,0.00030137,2]
[392960488,1762180249194,-500.0,0.00030137,2]
[392960489,1762180249204,-500.0,0.00030137,2]
[392960490,1762180249213,-500.0,0.00030137,2]
[392960491,1762180249228,-500.0,0.00030137,2]
[392960492,1762180249237,-500.0,0.00030137,2]
[392960493,1762180249247,-500.0,0.00030137,2]
[392960494,1762180249256,-500.0,0.00030137,2]
[392960495,1762180249265,-500.0,0.00030137,2]
[392960496,1762180249275,-500.0,0.00030137,2]
[392960497,1762180249284,-500.0,0.00030137,2]
[392960498,1762180249294,-500.0,0.00030137,2]
[392960499,1762180249303,-500.0,0.00030137,2]
[392960500,1762180249313,-250.0,0.00030137,2]
[392960501,1762180249322,-500.0,0.00030155,7]
[392960502,1762180249331,-776.50629282,0.00030185,7]
[392960503,1762180249341,-1883.02,0.000302,2]
[392960504,1762180249351,-500.0,0.0003022,7]
[392960505,1762180249361,-1270.0,0.00030274,2]
[392960506,1762180249372,-600.0,0.00030322,7]
[392960507,1762180249381,-525.85,0.000304,7]
[392960508,1762180249390,-500.0,0.0003041,15]
[392960509,1762180249400,-245.21,0.0003041,17]
[392960510,1762180249409,-500.0,0.0003041,2]
[392960511,1762180249418,-1168.03,0.0003041,2]
[392960512,1762180249428,-500.0,0.0003041,10]
[392960513,1762180249438,-5651.25,0.0003041,2]
[392960514,1762180249447,-500.0,0.0003041,2]
[392960515,1762180249456,-500.0,0.0003041,2]
[392960516,1762180249466,-323.06,0.0003041,2]
[392960517,1762180249476,-500.0,0.0003041,2]
[392960518,1762180249485,-300.0,0.0003041,2]
[392960519,1762180249496,-159.41955969,0.0003041,2]
[392960520,1762180249505,-150.0,0.0003041,2]
[392960521,1762180249515,-1000.0,0.00030411,2]
[392960522,1762180249524,-500.0,0.00030447,7]
[392960523,1762180249534,-169.0,0.00030447,14]
[392960524,1762180249543,-500.0,0.00030454,7]
[392960525,1762180249553,-1300.0,0.00030462,7]
[392960526,1762180249562,-29917.61047932,0.000305,5]
[392960527,1762180249572,-500.0,0.00030524,7]
[392960528,1762180249581,-1300.0,0.00030549,7]
[392960529,1762180249591,-500.0,0.00030567,7]
[392960530,1762180249600,-600.0,0.00030576,7]
[392960531,1762180249610,-1270.0,0.00030577,2]
[392960532,1762180249619,-500.0,0.00030596,7]
[392960533,1762180249630,-1300.0,0.00030624,7]
[392960534,1762180249644,-329.14410644,0.00030668,5]
[392960535,1762180249653,-500.0,0.00030669,7]
[392960536,1762180249663,-1300.0,0.00030669,7]
[392960537,1762180249673,-600.0,0.00030672,7]
[392960538,1762180249682,-500.0,0.00030674,7]
[392960539,1762180249691,-500.0,0.00030684,15]
[392960540,1762180249700,-245.21,0.00030684,18]
[392960541,1762180249710,-500.0,0.00030684,2]
[392960542,1762180249719,-1168.03,0.00030684,2]
[392960543,1762180249728,-500.0,0.00030684,10]
[392960544,1762180249738,-5651.25,0.00030684,2]
[392960545,1762180249747,-500.0,0.00030684,2]
[392960546,1762180249757,-500.0,0.00030684,2]
[392960547,1762180249767,-323.06,0.00030684,2]
[392960548,1762180249777,-500.0,0.00030684,2]
[392960549,1762180249786,-300.0,0.00030684,2]
[392960550,1762180249800,-150.0,0.00030684,2]
[392960551,1762180249810,-1000.0,0.00030685,2]
[392960552,1762180249819,-1300.0,0.00030687,7]
[392960553,1762180249829,-218.81762333,0.0003071,7]
[392960554,1762180249839,-1300.0,0.00030774,7]
[392960555,1762180249849,-500.0,0.00030775,7]
[392960556,1762180249858,-417.65,0.000308,30]
[392960557,1762180249870,-500.0,0.00030801,7]
[392960558,1762180249879,-500.0,0.00030821,7]
[392960559,1762180249888,-500.0,0.00030832,7]
[392960560,1762180249897,-2573.73150646,0.0003084,2]
[392960561,1762180249907,-200.0,0.0003084,30]
[392960562,1762180249917,-500.0,0.00030866,7]
[392960563,1762180249926,-1270.0,0.00030879,2]
[392960564,1762180249936,-500.0,0.00030911,7]
[392960565,1762180249946,-446.1979887,0.00030936,2]
[392960566,1762180249956,-500.0,0.00030938,7]
[392960567,1762180249966,-77854.33841206,0.0003095,2]
[392960568,1762180249975,-15511.23,0.00030956,8]
[392960569,1762180249985,-500.0,0.00030958,15]
[392960570,1762180249994,-245.21,0.00030958,19]
[392960571,1762180250003,-500.0,0.00030958,2]
[392960572,1762180250013,-1168.03,0.00030958,2]
[392960573,1762180250023,-500.0,0.00030958,10]
[392960574,1762180250033,-5651.25,0.00030958,2]
[392960575,1762180250042,-500.0,0.00030958,2]
[392960576,1762180250052,-500.0,0.00030958,2]
[392960577,1762180250062,-323.06,0.00030958,2]
[392960578,1762180250072,-500.0,0.00030958,2]
[392960579,1762180250081,-300.0,0.00030958,2]
[392960580,1762180250091,-150.0,0.00030958,2]
[392960581,1762180250102,-1000.0,0.00030959,2]
[392960582,1762180250111,-500.0,0.00030986,7]
[392960583,1762180250122,-1300.0,0.00030996,7]
[392960584,1762180250132,-241838.62869293,0.00031,10]
[392960585,1762180250142,-394.78024249,0.00031,5]
[392960586,1762180250152,-490.8972626,0.00031,5]
[392960587,1762180250162,-247852.39276085,0.00031,5]
[392960588,1762180250172,-380.54682808,0.00031,5]
[392960589,1762180250182,-336.50094611,0.00031,5]
[392960590,1762180250192,-396.32954989,0.00031,5]
[392960591,1762180250202,-226.12116521,0.00031,10]
[392960592,1762180250211,-1026.682,0.00031,2]
[392960593,1762180250220,-1883.02,0.00031,2]
[392960594,1762180250230,-470.0,0.00031,3]
[392960595,1762180250239,-1000.0,0.00031,2]
[392960596,1762180250249,-1000.0,0.00031,2]
[392960597,1762180250258,-1031.6508,0.00031,2]
[392960598,1762180250268,-2063.77107149,0.00031,60]
[392960599,1762180250277,-1116.01205712,0.00031,14]
[392960600,1762180250288,-1000.00000051,0.00031,2]
[392960601,1762180250297,-292.3596,0.00031,2]
[392960602,1762180250306,-79688.24554527,0.00031,2]
[392960603,1762180250316,-600.0,0.00031,2]
[392960604,1762180250326,-151.0,0.00031,31]
[392960605,1762180250336,-151.0,0.00031,31]
[392960606,1762180250345,-477.5520043,0.00031,10]